fUSD/lending_fUSD_20260218
["ID","MTS","AMOUNT","RATE_DAILY","PERIOD"]
[405874995,1771378242298,-500.0,0.00011704,2]
[405874996,1771378242308,-9035.0,0.00011754,2]
[405874997,1771378242318,-3620.0,0.00011757,2]
[405874998,1771378242329,-1160.76195353,0.00011775,2]
[405874999,1771378242339,-393.71,0.00011812,2]
[405875000,1771378242348,-1009.2,0.00011918,2]
[405875001,1771378242357,-500.0,0.00011978,2]
[405875002,1771378242367,-500.0,0.00012173,2]
[405875003,1771378242377,-500.0,0.00012173,2]
[405875004,1771378242387,-164.61380668,0.00012173,2]
[405875005,1771378242397,-500.0,0.00012173,2]
[405875007,1771378242406,-500.0,0.00012173,2]
[405875009,1771378242415,-500.0,0.00012173,2]
[405875010,1771378242425,-500.0,0.00012173,2]
[405875012,1771378242434,-500.0,0.00012173,2]
[405875013,1771378242444,-545.77855618,0.00012173,2]
[405875014,1771378242454,-160.1837527,0.00012173,2]
[405875015,1771378242467,-500.0,0.00012173,2]
[405875016,1771378242477,-500.0,0.00012173,2]
[405875017,1771378242489,-500.0,0.00012173,2]
[405875018,1771378242499,-500.0,0.00012173,2]
[405875019,1771378242510,-500.0,0.00012173,2]
[405875020,1771378242520,-500.0,0.00012173,2]
[405875021,1771378242530,-500.0,0.00012173,2]
[405875022,1771378242539,-160.37289206,0.00012173,2]
[405875023,1771378242551,-500.0,0.00012173,2]
[405875024,1771378242562,-500.0,0.00012173,2]
[405875025,1771378242573,-500.0,0.00012173,2]
[405875026,1771378242587,-500.46642231,0.00012173,2]
[405875027,1771378242598,-500.0,0.00012173,2]
[405875028,1771378242609,-500.0,0.00012173,2]
[405875029,1771378242620,-500.0,0.00012173,2]
[405875030,1771378242631,-166.82039048,0.00012173,2]
[405875039,1771378243004,-500.0,0.00012173,2]
[405875040,1771378243015,-500.0,0.00012173,2]
[405875041,1771378243026,-218.37761042,0.00012173,2]
[405875042,1771378243035,-1009.2,0.00012192,2]
[405875043,1771378243044,-500.0,0.00012252,2]
[405875044,1771378243053,-20533.46148321,0.00012267,2]
[405875045,1771378243063,-213.3367452,0.00012267,2]
[405875046,1771378243072,-393.71,0.00012326,2]
[405875047,1771378243081,-214160.0,0.000124,2]
[405875048,1771378243091,-1009.2,0.00012466,2]
[405875049,1771378243099,-308.39558699,0.000125,2]
[405875050,1771378243111,-500.0,0.00012526,2]
[405875051,1771378243122,-1000.0,0.00012721,2]
[405875052,1771378243132,-1000.0,0.00012721,2]
[405875053,1771378243141,-228.57891647,0.00012721,2]
[405875054,1771378243152,-571.65229745,0.00012721,2]
[405875055,1771378243161,-1002.81524174,0.00012721,2]
[405875056,1771378243171,-544.40507509,0.00012721,2]
[405875057,1771378243180,-1000.0,0.00012721,2]
[405875058,1771378243190,-1000.0,0.00012721,2]
[405875059,1771378243200,-1000.0,0.00012721,2]
[405875060,1771378243209,-1000.0,0.00012721,2]
[405875061,1771378243222,-1000.0,0.00012721,2]
[405875062,1771378243231,-509.22256369,0.00012721,2]
[405875063,1771378243240,-500.79797067,0.00012721,2]
[405875064,1771378243250,-1000.0,0.00012721,2]
[405875065,1771378243261,-615.76582304,0.00012721,2]
[405875066,1771378243271,-1000.0,0.00012721,2]
[405875067,1771378243282,-1000.0,0.00012721,2]
[405875068,1771378243293,-1000.0,0.00012721,2]
[405875069,1771378243303,-1000.0,0.00012721,2]
[405875070,1771378243312,-306.32454784,0.00012721,2]
[405875071,1771378243327,-1000.0,0.00012721,2]
[405875072,1771378243337,-1009.2,0.0001274,2]
[405875073,1771378243347,-500.0,0.000128,2]
[405875074,1771378243357,-5530.0,0.000128,3]
[405875075,1771378243367,-393.71,0.00012839,2]
[405875076,1771378243377,-576.83,0.00012844,2]
[405875077,1771378243386,-271.46,0.00012877,2]
[405875078,1771378243397,-150000.0,0.000129,2]
[405875079,1771378243407,-12649.0,0.0001293,2]
[405875080,1771378243417,-2937.0,0.00012931,2]
[405875081,1771378243427,-5623.26156693,0.00013,2]
[405875082,1771378243437,-1009.20002581,0.00013014,2]
[405875083,1771378243447,-286.2,0.00013038,2]
[405875084,1771378243457,-279.52,0.00013038,2]
[405875085,1771378243467,-5362.79805645,0.0001305,2]
[405875086,1771378243477,-500.0,0.00013074,2]
[405875087,1771378243487,-5530.0,0.000132,5]
[405875088,1771378243496,-1500.0,0.00013268,2]
[405875089,1771378243506,-744.95097778,0.00013268,2]
[405875090,1771378243516,-616.56100589,0.00013268,2]
[405875091,1771378243525,-1500.0,0.00013268,2]
[405875092,1771378243535,-592.40967882,0.00013268,2]
[405875093,1771378243545,-1500.0,0.00013268,2]
[405875094,1771378243554,-623.71743587,0.00013268,2]
[405875095,1771378243564,-806.86059886,0.00013268,2]
[405875096,1771378243574,-1500.0,0.00013268,2]
[405875097,1771378243584,-1500.0,0.00013268,2]
[405875098,1771378243593,-1500.0,0.00013268,2]
[405875099,1771378243603,-1500.0,0.00013268,2]
[405875100,1771378243612,-1500.0,0.00013268,2]
[405875101,1771378243621,-393.71,0.00013353,2]
[405875102,1771378243631,-1000.0,0.000135,2]
[405875103,1771378243641,-55824.36204416,0.00013582,2]
[405875104,1771378243651,-173.57638878,0.00013663,2]
[405875105,1771378243660,-160.0,0.00013663,2]
[405875106,1771378243670,-151.0,0.00013695,2]
[405875107,1771378243679,-500.0,0.00013698,2]
[405875108,1771378243689,-500.0,0.00013698,2]
[405875109,1771378243699,-500.0,0.00013698,2]
[405875110,1771378243708,-500.0,0.00013698,2]
[405875111,1771378243717,-500.0,0.00013698,2]
[405875112,1771378243727,-500.0,0.00013698,2]
[405875113,1771378243736,-500.0,0.00013698,2]
[405875114,1771378243746,-500.0,0.00013698,2]
[405875115,1771378243755,-500.0,0.00013698,2]
[405875116,1771378243765,-500.0,0.00013698,2]
[405875117,1771378243774,-500.0,0.00013698,2]
[405875118,1771378243783,-500.0,0.00013698,2]
[405875119,1771378243793,-500.0,0.00013698,2]
[405875120,1771378243802,-500.0,0.00013698,2]
[405875121,1771378243812,-500.0,0.00013698,2]
[405875122,1771378243821,-500.0,0.00013698,2]
[405875124,1771378243831,-600.82615766,0.00013698,2]
[405875126,1771378243840,-2052.7,0.00013698,2]
[405875130,1771378243850,-2052.7,0.00013698,2]
[405875131,1771378243864,-2052.7,0.00013698,2]
[405875132,1771378243874,-2052.7,0.00013698,2]
[405875133,1771378243883,-2052.7,0.00013698,2]
[405875134,1771378243893,-2052.7,0.00013698,2]
[405875135,1771378243903,-2052.7,0.00013698,2]
[405875136,1771378243912,-2052.7,0.00013698,2]
[405875137,1771378243922,-2052.7,0.00013698,2]
[405875138,1771378243931,-2052.7,0.00013698,2]
[405875139,1771378243941,-2052.7,0.00013698,2]
[405875140,1771378243951,-2052.7,0.00013698,2]
[405875141,1771378243961,-2052.7,0.00013698,2]
[405875142,1771378243970,-2052.7,0.00013698,2]
[405875143,1771378243980,-2052.7,0.00013698,2]
[405875144,1771378243990,-2052.7,0.00013698,2]
[405875145,1771378244000,-2052.7,0.00013698,2]
[405875146,1771378244010,-2052.7,0.00013698,2]
[405875147,1771378244020,-2052.7,0.00013698,2]
[405875148,1771378244029,-2052.7,0.00013698,2]
[405875149,1771378244040,-2052.7,0.00013698,2]
[405875150,1771378244050,-2052.7,0.00013698,2]
[405875151,1771378244060,-2052.7,0.00013698,2]
[405875152,1771378244069,-2052.77678348,0.00013698,2]
[405875153,1771378244079,-500.0,0.00013698,2]
[405875154,1771378244089,-500.0,0.00013698,2]
[405875155,1771378244098,-213.96435398,0.00013698,2]
[405875156,1771378244108,-1013.23,0.00013698,2]
[405875157,1771378244117,-1013.23,0.00013698,2]
[405875158,1771378244127,-1013.23,0.00013698,2]
[405875159,1771378244136,-1013.23,0.00013698,2]
[405875160,1771378244147,-1013.23,0.00013698,2]
[405875161,1771378244157,-1013.23,0.00013698,2]
[405875162,1771378244167,-1013.23,0.00013698,2]
[405875163,1771378244176,-1013.23,0.00013698,2]
[405875164,1771378244186,-1013.23,0.00013698,2]
[405875165,1771378244196,-1013.23,0.00013698,2]
[405875166,1771378244215,-1013.23,0.00013698,2]
[405875167,1771378244226,-1013.23,0.00013698,2]
[405875168,1771378244236,-1013.23,0.00013698,2]
[405875169,1771378244248,-1013.23,0.00013698,2]
[405875170,1771378244263,-1013.23,0.00013698,2]
[405875171,1771378244273,-500.0,0.00013698,2]
[405875172,1771378244283,-500.0,0.00013698,2]
[405875173,1771378244294,-500.0,0.00013698,2]
[405875174,1771378244305,-500.0,0.00013698,2]
[405875175,1771378244316,-546.97,0.00013698,2]
[405875176,1771378244327,-546.97,0.00013698,2]
[405875177,1771378244339,-546.97,0.00013698,2]
[405875178,1771378244350,-546.97,0.00013698,2]
[405875179,1771378244360,-546.97,0.00013698,2]
[405875180,1771378244372,-546.97,0.00013698,2]
[405875181,1771378244381,-546.97,0.00013698,2]
[405875182,1771378244392,-546.97,0.00013698,2]
[405875183,1771378244402,-546.97,0.00013698,2]
[405875184,1771378244413,-546.97,0.00013698,2]
[405875185,1771378244424,-546.97,0.00013698,2]
[405875186,1771378244435,-546.97,0.00013698,2]
[405875187,1771378244446,-546.97,0.00013698,2]
[405875188,1771378244457,-546.97,0.00013698,2]
[405875189,1771378244467,-546.97,0.00013698,2]
[405875190,1771378244477,-500.0,0.00013698,2]
[405875191,1771378244489,-500.0,0.00013698,2]
[405875192,1771378244499,-500.0,0.00013698,2]
[405875193,1771378244510,-500.0,0.00013698,2]
[405875194,1771378244521,-500.0,0.00013698,2]
[405875195,1771378244532,-500.0,0.00013698,2]
[405875196,1771378244542,-500.0,0.00013698,2]
[405875197,1771378244552,-500.0,0.00013698,2]
[405875198,1771378244562,-500.0,0.00013698,2]
[405875199,1771378244572,-500.0,0.00013698,2]
[405875200,1771378244584,-500.0,0.00013698,2]
[405875201,1771378244595,-500.0,0.00013698,2]
[405875202,1771378244605,-500.0,0.00013698,2]
[405875203,1771378244617,-500.0,0.00013698,2]
[405875204,1771378244628,-500.0,0.00013698,2]
[405875205,1771378244639,-1479.1,0.00013698,2]
[405875206,1771378244650,-1479.1,0.00013698,2]
[405875207,1771378244661,-1479.1,0.00013698,2]
[405875208,1771378244672,-1479.1,0.00013698,2]
[405875209,1771378244684,-1479.1,0.00013698,2]
[405875210,1771378244694,-1479.1,0.00013698,2]
[405875211,1771378244704,-1479.1,0.00013698,2]
[405875212,1771378244714,-1479.1,0.00013698,2]
[405875213,1771378244724,-1479.1,0.00013698,2]
[405875214,1771378244734,-1479.1,0.00013698,2]
[405875215,1771378244744,-1479.1,0.00013698,2]
[405875216,1771378244754,-1479.1,0.00013698,2]
[405875217,1771378244764,-1479.1,0.00013698,2]
[405875218,1771378244774,-1479.1,0.00013698,2]
[405875219,1771378244783,-1479.1,0.00013698,2]
[405875220,1771378244794,-500.0,0.00013698,2]
[405875221,1771378244804,-500.0,0.00013698,2]
[405875222,1771378244814,-500.0,0.00013698,2]
[405875223,1771378244824,-200.92210999,0.00013698,2]
[405875224,1771378244834,-1546.47,0.00013698,2]
[405875225,1771378244844,-172.09485914,0.00013698,2]
[405875226,1771378244854,-1546.47,0.00013698,2]
[405875227,1771378244865,-1546.47,0.00013698,2]
[405875228,1771378244876,-1546.47,0.00013698,2]
[405875229,1771378244887,-1546.47,0.00013698,2]
[405875230,1771378244898,-1546.47,0.00013698,2]
[405875231,1771378244908,-1546.47,0.00013698,2]
[405875232,1771378244918,-1546.47,0.00013698,2]
[405875233,1771378244928,-1546.47,0.00013698,2]
[405875234,1771378244938,-1546.47,0.00013698,2]
[405875235,1771378244948,-1546.47,0.00013698,2]
[405875236,1771378244958,-1546.47,0.00013698,2]
[405875237,1771378244967,-1546.47,0.00013698,2]
[405875238,1771378244979,-1546.47,0.00013698,2]
[405875239,1771378244989,-1546.47,0.00013698,2]
[405875240,1771378245001,-649.58,0.00013698,2]
[405875241,1771378245011,-649.58,0.00013698,2]
[405875242,1771378245022,-649.58,0.00013698,2]
[405875243,1771378245032,-649.58,0.00013698,2]
[405875244,1771378245042,-649.58,0.00013698,2]
[405875245,1771378245052,-649.58,0.00013698,2]
[405875246,1771378245062,-649.58,0.00013698,2]
[405875247,1771378245073,-500.0,0.00013698,2]
[405875248,1771378245084,-649.58,0.00013698,2]
[405875249,1771378245094,-500.0,0.00013698,2]
[405875250,1771378245104,-649.58,0.00013698,2]
[405875251,1771378245115,-500.0,0.00013698,2]
[405875252,1771378245124,-649.58,0.00013698,2]
[405875253,1771378245134,-500.0,0.00013698,2]
[405875254,1771378245144,-649.58,0.00013698,2]
[405875255,1771378245154,-500.0,0.00013698,2]
[405875256,1771378245165,-649.58,0.00013698,2]
[405875257,1771378245175,-500.0,0.00013698,2]
[405875258,1771378245185,-649.58,0.00013698,2]
[405875259,1771378245195,-500.0,0.00013698,2]
[405875260,1771378245209,-649.58,0.00013698,2]
[405875261,1771378245222,-500.0,0.00013698,2]
[405875262,1771378245235,-649.58,0.00013698,2]
[405875263,1771378245246,-500.0,0.00013698,2]
[405875264,1771378245258,-649.58,0.00013698,2]
[405875265,1771378245268,-500.0,0.00013698,2]
[405875266,1771378245279,-649.58,0.00013698,2]
[405875267,1771378245290,-500.0,0.00013698,2]
[405875268,1771378245300,-649.58,0.00013698,2]
[405875269,1771378245311,-500.0,0.00013698,2]
[405875270,1771378245322,-649.58,0.00013698,2]
[405875271,1771378245332,-544.21358946,0.00013698,2]
[405875272,1771378245342,-649.58,0.00013698,2]
[405875273,1771378245352,-649.58,0.00013698,2]
[405875274,1771378245362,-649.58,0.00013698,2]
[405875275,1771378245374,-649.58,0.00013698,2]
[405875276,1771378245384,-634.64,0.00013698,2]
[405875277,1771378245396,-649.74,0.00013698,2]
[405875278,1771378245408,-634.64,0.00013698,2]
[405875279,1771378245418,-634.64,0.00013698,2]
[405875280,1771378245429,-634.64,0.00013698,2]
[405875281,1771378245440,-634.64,0.00013698,2]
[405875282,1771378245451,-634.64,0.00013698,2]
[405875283,1771378245461,-634.64,0.00013698,2]
[405875284,1771378245472,-634.64,0.00013698,2]
[405875285,1771378245484,-634.64,0.00013698,2]
[405875286,1771378245607,-634.64,0.00013698,2]
[405875287,1771378245619,-634.64,0.00013698,2]
[405875288,1771378245630,-634.64,0.00013698,2]
[405875289,1771378245641,-634.64,0.00013698,2]
[405875290,1771378245651,-634.64,0.00013698,2]
[405875291,1771378245661,-634.64,0.00013698,2]
[405875292,1771378245671,-1180.75,0.00013698,2]
[405875293,1771378245681,-1180.75,0.00013698,2]
[405875294,1771378245695,-1180.75,0.00013698,2]
[405875295,1771378245705,-1180.75,0.00013698,2]
[405875296,1771378245715,-1180.75,0.00013698,2]
[405875297,1771378245726,-1180.75,0.00013698,2]
[405875298,1771378245735,-1180.75,0.00013698,2]
[405875299,1771378245746,-1180.75,0.00013698,2]
[405875300,1771378245756,-1180.75,0.00013698,2]
[405875301,1771378245766,-1180.75,0.00013698,2]
[405875302,1771378245775,-1180.75,0.00013698,2]
[405875303,1771378245784,-1180.75,0.00013698,2]
[405875304,1771378245795,-1180.75,0.00013698,2]
[405875305,1771378245804,-1180.75,0.00013698,2]
[405875306,1771378245814,-1180.75,0.00013698,2]
[405875307,1771378245823,-1180.75,0.00013698,2]
[405875308,1771378245832,-1180.75,0.00013698,2]
[405875309,1771378245842,-1180.75,0.00013698,2]
[405875310,1771378245851,-1180.75,0.00013698,2]
[405875311,1771378245861,-1180.75,0.00013698,2]
[405875312,1771378245870,-1180.75,0.00013698,2]
[405875313,1771378245879,-1180.75,0.00013698,2]
[405875314,1771378245892,-1180.75,0.00013698,2]
[405875315,1771378245901,-1180.79,0.00013698,2]
[405875316,1771378245912,-500.0,0.00013698,2]
[405875317,1771378245921,-500.0,0.00013698,2]
[405875318,1771378245930,-500.0,0.00013698,2]
[405875319,1771378245939,-191.17661539,0.00013698,2]
[405875320,1771378245948,-500.0,0.00013698,2]
[405875321,1771378245957,-500.0,0.00013698,2]
[405875322,1771378245966,-500.0,0.00013698,2]
[405875323,1771378245975,-500.0,0.00013698,2]
[405875324,1771378245983,-500.0,0.00013698,2]
[405875325,1771378245992,-500.0,0.00013698,2]
[405875326,1771378246001,-500.0,0.00013698,2]
[405875327,1771378246011,-500.0,0.00013698,2]
[405875328,1771378246019,-500.0,0.00013698,2]
[405875329,1771378246029,-500.0,0.00013698,2]
[405875330,1771378246038,-500.0,0.00013698,2]
[405875331,1771378246047,-307.56,0.00013698,2]
[405875332,1771378246056,-500.0,0.00013698,2]
[405875333,1771378246064,-500.0,0.00013698,2]
[405875334,1771378246073,-500.0,0.00013698,2]
[405875335,1771378246085,-505.58518338,0.00013698,2]
[405875336,1771378246094,-500.0,0.00013698,2]
[405875337,1771378246104,-500.0,0.00013698,2]
[405875338,1771378246113,-500.0,0.00013698,2]
[405875339,1771378246123,-500.0,0.00013698,2]
[405875340,1771378246132,-500.0,0.00013698,2]
[405875341,1771378246142,-474.03942024,0.00013698,2]
[405875342,1771378246151,-500.0,0.00013698,2]
[405875343,1771378246160,-500.0,0.00013698,2]
[405875344,1771378246170,-169.78,0.00013698,2]
[405875345,1771378246181,-528.4390448,0.00013698,2]
[405875346,1771378246190,-500.0,0.00013698,2]
[405875347,1771378246200,-169.19,0.00013698,2]
[405875348,1771378246213,-500.0,0.00013698,2]
[405875349,1771378246223,-500.0,0.00013698,2]
[405875350,1771378246232,-500.0,0.00013698,2]
[405875351,1771378246243,-500.0,0.00013698,2]
[405875352,1771378246256,-586.00467181,0.00013698,2]
[405875353,1771378246265,-500.0,0.00013698,2]
[405875354,1771378246278,-500.0,0.00013698,2]
[405875355,1771378246288,-500.0,0.00013698,2]
[405875356,1771378246298,-500.0,0.00013698,2]
[405875357,1771378246308,-500.0,0.00013698,2]
[405875358,1771378246318,-500.0,0.00013698,2]
[405875359,1771378246327,-321.35543779,0.00013698,2]
[405875360,1771378246336,-500.0,0.00013698,2]
[405875361,1771378246345,-500.0,0.00013698,2]
[405875362,1771378246354,-500.0,0.00013698,2]
[405875363,1771378246363,-500.0,0.00013698,2]
[405875364,1771378246372,-500.0,0.00013698,2]
[405875365,1771378246381,-500.0,0.00013698,2]
[405875366,1771378246390,-712.99,0.00013699,2]
[405875367,1771378246400,-3936.54,0.00013699,2]
[405875368,1771378246408,-752.67,0.00013699,2]
[405875369,1771378246418,-151.02878078,0.00013699,3]
[405875370,1771378246427,-503.8182606,0.00013816,2]
[405875371,1771378246446,-2000.0,0.00013816,2]
[405875372,1771378246456,-2000.0,0.00013816,2]
[405875373,1771378246465,-2000.0,0.00013816,2]
[405875374,1771378246474,-237.97520785,0.00013816,2]
[405875375,1771378246483,-2000.0,0.00013816,2]
[405875376,1771378246500,-2000.0,0.00013816,2]
[405875377,1771378246512,-527.71923747,0.00013816,2]
[405875378,1771378246523,-393.71,0.00013866,2]
[405875379,1771378246535,-500.0,0.00013873,2]
[405875380,1771378246545,-500.0,0.00013873,2]
[405875381,1771378246556,-163.87964352,0.00013873,2]
[405875382,1771378246567,-335.00019172,0.00013873,2]
[405875383,1771378246576,-500.0,0.00013873,2]
[405875384,1771378246587,-500.0,0.00013873,2]
[405875385,1771378246598,-500.0,0.00013873,2]
[405875386,1771378246607,-500.0,0.00013873,2]
[405875387,1771378246617,-500.0,0.00013873,2]
[405875388,1771378246627,-500.0,0.00013873,2]
[405875389,1771378246639,-500.0,0.00013873,2]
[405875390,1771378246648,-500.0,0.00013873,2]
[405875391,1771378246659,-500.0,0.00013873,2]
[405875392,1771378246668,-500.0,0.00013873,2]
[405875393,1771378246678,-500.0,0.00013873,2]
[405875394,1771378246687,-500.0,0.00013873,2]
[405875395,1771378246697,-500.0,0.00013873,2]
[405875396,1771378246706,-500.0,0.00013873,2]
[405875397,1771378246716,-500.0,0.00013873,2]
[405875398,1771378246725,-160.29464371,0.00013873,2]
[405875399,1771378246735,-500.0,0.00013873,2]
[405875400,1771378246744,-160.44342054,0.00013873,2]
[405875401,1771378246753,-160.57193954,0.00013873,2]
[405875402,1771378246762,-576.17743239,0.00013873,2]
[405875403,1771378246772,-500.0,0.00013873,2]
[405875404,1771378246782,-523.64780308,0.00013873,2]
[405875405,1771378246791,-616.27940406,0.00013873,2]
[405875406,1771378246801,-500.0,0.00013873,2]
[405875407,1771378246811,-501.23450591,0.00013873,2]
[405875408,1771378246820,-500.0,0.00013873,2]
[405875409,1771378246830,-500.0,0.00013873,2]
[405875410,1771378246839,-500.0,0.00013873,2]
[405875411,1771378246849,-561.11210647,0.00013873,2]
[405875412,1771378246859,-500.0,0.00013873,2]
[405875413,1771378246869,-500.0,0.00013873,2]
[405875414,1771378246879,-500.0,0.00013873,2]
[405875415,1771378246889,-500.0,0.00013873,2]
[405875416,1771378246899,-161.87499248,0.00013873,2]
[405875417,1771378246909,-162.40112722,0.00013873,2]
[405875418,1771378246918,-505.14943602,0.00013873,2]
[405875419,1771378246927,-500.0,0.00013873,2]
[405875420,1771378246937,-500.0,0.00013873,2]
[405875421,1771378246948,-500.0,0.00013873,2]
[405875422,1771378246959,-310.22535934,0.00013873,2]
[405875423,1771378246969,-285.23122629,0.00013873,2]
[405875424,1771378246979,-500.0,0.00013873,2]
[405875425,1771378246989,-500.0,0.00013873,2]
[405875426,1771378246999,-160.55826743,0.00013873,2]
[405875427,1771378247009,-500.0,0.00013873,2]
[405875428,1771378247019,-501.14207764,0.00013873,2]
[405875429,1771378247029,-161.06774125,0.00013873,2]
[405875430,1771378247043,-500.0,0.00013873,2]
[405875431,1771378247054,-500.0,0.00013873,2]
[405875432,1771378247065,-168.48266914,0.00013873,2]
[405875433,1771378247075,-569.93791735,0.00013873,2]
[405875434,1771378247085,-514.3981141,0.00013873,2]
[405875435,1771378247095,-500.0,0.00013873,2]
[405875436,1771378247104,-502.95297226,0.00013873,2]
[405875437,1771378247115,-500.0,0.00013873,2]
[405875438,1771378247125,-500.0,0.00013873,2]
[405875439,1771378247135,-163.17658841,0.00013873,2]
[405875440,1771378247146,-500.0,0.00013873,2]
[405875441,1771378247156,-1500.0,0.00014,2]
[405875442,1771378247165,-906.0,0.00014,2]
[405875443,1771378247175,-200.0,0.00014222,2]
[405875444,1771378247186,-1464.93718194,0.00014364,2]
[405875445,1771378247196,-2500.0,0.00014364,2]
[405875446,1771378247208,-1509.709324,0.00014364,2]
[405875447,1771378247219,-2500.0,0.00014364,2]
[405875448,1771378247231,-2500.0,0.00014364,2]
[405875449,1771378247242,-10349.13153648,0.0001439,2]
[405875450,1771378247254,-1000.0,0.00014421,2]
[405875451,1771378247266,-504.64635869,0.00014421,2]
[405875452,1771378247277,-1001.35605949,0.00014421,2]
[405875453,1771378247288,-1000.0,0.00014421,2]
[405875454,1771378247300,-1000.0,0.00014421,2]
[405875455,1771378247309,-502.22718587,0.00014421,2]
[405875456,1771378247319,-1009.85751715,0.00014421,2]
[405875457,1771378247329,-1000.0,0.00014421,2]
[405875458,1771378247339,-501.86536618,0.00014421,2]
[405875459,1771378247348,-504.09468333,0.00014421,2]
[405875460,1771378247357,-1000.0,0.00014421,2]
[405875461,1771378247368,-1000.0,0.00014421,2]
[405875462,1771378247379,-1000.0,0.00014421,2]
[405875463,1771378247389,-591.31681112,0.00014421,2]
[405875464,1771378247399,-1000.0,0.00014421,2]
[405875465,1771378247408,-1000.0,0.00014421,2]
[405875466,1771378247418,-1000.0,0.00014421,2]
[405875467,1771378247429,-1000.0,0.00014421,2]
[405875468,1771378247440,-1000.0,0.00014421,2]
[405875469,1771378247450,-1066.49837644,0.00014421,2]
[405875470,1771378247460,-1000.0,0.00014421,2]
[405875471,1771378247471,-1000.0,0.00014421,2]
[405875472,1771378247484,-526.45746157,0.00014421,2]
[405875473,1771378247495,-1000.0,0.00014421,2]
[405875474,1771378247507,-1000.0,0.00014421,2]
[405875475,1771378247518,-1000.0,0.00014421,2]
[405875476,1771378247528,-1000.0,0.00014421,2]
[405875477,1771378247538,-1000.0,0.00014421,2]
[405875478,1771378247548,-561.93408671,0.00014421,2]
[405875479,1771378247559,-1000.0,0.00014421,2]
[405875480,1771378247568,-552.89419638,0.00014421,2]
[405875481,1771378247578,-1000.0,0.00014421,2]
[405875482,1771378247587,-1000.0,0.00014421,2]
[405875483,1771378247597,-510.83232482,0.00014421,2]
[405875484,1771378247606,-1000.0,0.00014421,2]
[405875485,1771378247615,-1000.0,0.00014421,2]
[405875486,1771378247624,-1000.0,0.00014421,2]
[405875487,1771378247634,-1000.0,0.00014421,2]
[405875488,1771378247643,-55824.36204416,0.0001473,2]
[405875489,1771378247653,-576.83,0.00014747,2]
[405875490,1771378247663,-51215.79391174,0.00014768,2]
[405875491,1771378247673,-1500.0,0.000149,5]
[405875492,1771378247684,-528.16354372,0.000149,2]
[405875493,1771378247694,-3000.0,0.00014912,2]
[405875494,1771378247704,-3000.0,0.00014912,2]
[405875495,1771378247714,-778.95197647,0.00014912,2]
[405875496,1771378247724,-504.47861685,0.00014968,2]
[405875497,1771378247734,-1500.0,0.00014968,2]
[405875498,1771378247745,-1500.0,0.00014968,2]
[405875499,1771378247755,-1500.0,0.00014968,2]
[405875500,1771378247765,-501.69367829,0.00014968,2]
[405875501,1771378247776,-1500.0,0.00014968,2]
[405875502,1771378247787,-1500.0,0.00014968,2]
[405875503,1771378247797,-509.6821238,0.00014968,2]
[405875504,1771378247807,-1599.75036731,0.00014968,2]
[405875505,1771378247818,-1512.37454404,0.00014968,2]
[405875506,1771378247828,-1493.32627728,0.00014968,2]
[405875507,1771378247837,-152.79388166,0.00014968,2]
[405875508,1771378247847,-1007.83079426,0.00014968,2]
[405875509,1771378247857,-1500.0,0.00014968,2]
[405875510,1771378247867,-1500.0,0.00014968,2]